Workbook

Sheet Title

Sheet Lime model
A1: Maintenance Liming Rate Calculator
A2: Paddock name: | B2: Enter | E2: Top Soil Texture: | F2: Select
B3: Crawford | F3: Clay Loam
B4: Year | C4: 1 | D4: 2 | E4: 3 | F4: 4 | G4: 5 | H4: 6 | I4: 7
A5: Year ( 20…… ) | B5: Enter | C5: 2011 | D5: 2012 | E5: 2013 | F5: 2014 | G5: 2015 | H5: 2016 | I5: 2017 | O5: Annual Rainfall received | P5: Soil texture
A6: Annual Rainfall | B6: Enter | C6: 616 | D6: 370 | E6: 504 | F6: 401 | G6: 493 | H6: 734 | I6: 433 | P6: Sand | Q6: Loamy Sand | R6: Sandy Loam | S6: Loam | T6: Clay Loam | U6: Clay | W6: Yes | X6: No
A7: Saturated Soil | B7: Select | C7: No | D7: No | E7: No | F7: No | G7: No | H7: No | I7: No | O7: Less than 325 mm | P7: 0.5 | Q7: 0.4 | R7: 0.3 | S7: 0.1 | T7: 0 | U7: 0 | W7: =IF($F$3=V7,"Texture!!",IF($F$3=$P$6,P7,IF($F$3=$Q$6,Q7,IF($F$3=$R$6,R7,IF($F$3=$S$6,S7,IF($F$3=$T$6,T7,IF($F$3=$U$6,U7,0))))))) -> 0
A8: Leaching % | C8: =IF(C7=$W$6,$W$12,IF(C6<326,$W$7,IF(C6<451,$W$8,IF(C6<551,$W$9,IF(C6<751,$W$10,IF(C6>750,$W$11,)))))) -> 0.2 | D8: =IF(D7=$W$6,$W$12,IF(D6<326,$W$7,IF(D6<451,$W$8,IF(D6<551,$W$9,IF(D6<751,$W$10,IF(D6>750,$W$11,IF(D6=P12,$W$12,))))))) -> 0.05 | E8: 0.1 | F8: 0.05 | G8: 0.1 | H8: 0.2 | I8: 0.05 | O8: 325 - 450 mm | P8: 0.65 | Q8: 0.57 | R8: 0.45 | S8: 0.25 | T8: 0.05 | U8: 0 | W8: 0.05
E9: Product Removal | O9: 450 - 550 mm | P9: 0.75 | Q9: 0.68 | R9: 0.5 | S9: 0.3 | T9: 0.1 | U9: 0 | W9: 0.1
A10: Crop Type | B10: Select | C10: Cereal grain | D10: Pasture (40% legume) | E10: Cereal grain | F10: Pasture (80% legume) | G10: Cereal grain | H10: Pasture (80% legume) | I10: Cereal grain | O10: 550 - 750 mm | P10: 0.8 | Q10: 0.7 | R10: 0.6 | S10: 0.4 | T10: 0.2 | U10: 0 | W10: 0.2
A11: Yield (tonnes/ha) | B11: Enter | C11: 3.6 | D11: 4.5 | E11: 3 | F11: 5 | G11: 1.3 | H11: 6 | I11: 2 | O11: Greater than 750 mm | P11: 0.95 | Q11: 0.85 | R11: 0.75 | S11: 0.55 | T11: 0.35 | U11: 0.15 | W11: 0.35
A12: Lime replacement/tonne grain yield (kg/ha) | C12: =VLOOKUP(C10,Crop_array,2,0) -> 9 | D12: 2 | E12: 9 | F12: 4 | G12: 9 | H12: 4 | I12: 9 | O12: Saturated Soil | P12: 0.95 | Q12: 0.85 | R12: 0.75 | S12: 0.55 | T12: 0.35 | U12: 0.15 | W12: 0.35
A13: Lime required due to product removal (kg/ha) | C13: =C11*C12 -> 32.4 | D13: =D11*D12 -> 9 | E13: 27 | F13: 20 | G13: 11.7 | H13: 24 | I13: 18 | J13: Total (kg/ha) | K13: =SUM(C13:I13) -> 142.1
E14: Legume Fixed Nitrogen
A15: kg N fixed per tonne legume production | C15: =VLOOKUP(C10,Nfixed_array,2,0) -> 0 | D15: 8 | E15: 0 | F15: 20 | G15: 0 | H15: 20 | I15: 0 | O15: Crop | P15: lime equivalent per tonne | S15: N fixed by legume crops and pastures (kg/ha)*
A16: Legume fixed nitrogen (kg/ha) | C16: =C11*C15 -> 0 | D16: =D11*D15 -> 36 | E16: 0 | F16: 100 | G16: 0 | H16: 120 | I16: 0 | S16: Crop/Pasture | T16: Select
A17: Leaching adjusted lime requirement (kg/ha)/kg N | C17: =IF(C10=$O$18,U46,IF(C10=$O$21,U45,IF(C10=$O$22,U45,IF(C10=$O$23,U45,IF(C10=$O$24,U45,IF(C10=$O$26,U45,0)))))) -> 0 | D17: =IF(D10=$O$18,V46,IF(D10=$O$21,V45,IF(D10=$O$22,V45,IF(D10=$O$23,V45,IF(D10=$O$24,V45,IF(D10=$O$26,V45,0)))))) -> 0.18 | E17: 0 | F17: 0.18 | G17: 0 | H17: 0.72 | I17: 0 | O17: Cereal grain | P17: 9 | S17: Nil legumes | T17: 0
A18: Lime required due to legume fixed N (kg/ha) | C18: =C16*C17 -> 0 | D18: =D16*D17 -> 6.48 | E18: 0 | F18: 18 | G18: =G16*G17 -> 0 | H18: =H16*H17 -> 86.4 | I18: 0 | J18: Total (kg/ha) | K18: =SUM(C18:I18) -> 110.88 | O18: Grain legume | P18: 20 | S18: Legume pasture (kg N/t DM) | T18: 30
E19: Fertilisers Inputs | O19: Oilseed | P19: 2 | S19: Grain legume crop (kg N fixed/t grain) | T19: 60
A20: Fertiliser 1. (Seeding) | O20: Pasture (grass only) | P20: 10 | S20: *Assumes 100% leaching, will be adjusted by fert leaching factor
A21: Fertiliser Type | B21: Select | C21: DAP | D21: DAP | E21: DAP | F21: DAP | G21: MAP | H21: DAP | I21: MAP | O21: Pasture (40% legume) | P21: 30
A22: Rate fertiliser (kg/ha) | B22: Enter | C22: 92 | D22: 20 | E22: 75 | F22: 0 | G22: 75 | H22: 0 | I22: 55 | O22: Pasture (60% legume) | P22: 40
A23: Product N (%) | C23: =IF(C21=$O$31,$Q$31,IF(C21=$O$32,$Q$32,IF(C21=$O$33,$Q$33,IF(C21=$O$34,$Q$34,IF(C21=$O$35,$Q$35,IF(C21=$O$36,$Q$36,IF(C21=$O$37,$Q$37,IF(C21=$O$38,$Q$38,IF(C21=$O$39,$Q$39,IF(C21=$O$40,$Q$40,IF(C21=$O$41,$Q$41,IF(C21=$O$42,$Q$42,IF(C21=$O$43,$Q$43,IF(C21=$O$44,$Q$44,IF(C21=$O$45,$Q$45,IF(C21=$O$46,$Q$46,IF(C21=$O$47,$Q$47,0))))))))))))))))) -> 18 | D23: 18 | E23: 18 | F23: 18 | G23: 10 | H23: 18 | I23: 10 | O23: Pasture (80% legume) | P23: 50
A24: Rate of nitrogen | C24: =C22*C23/100 -> 16.56 | D24: =D22*D23/100 -> 3.6 | E24: 13.5 | F24: 0 | G24: 7.5 | H24: 0 | I24: 5.5 | O24: Lucerne hay | P24: 70
A25: Leaching adjusted lime requirement (kg/ha)/kg N | C25: =IF(C21=$O$31,U31,IF(C21=$O$32,U32,IF(C21=$O$33,U33,IF(C21=$O$34,U34,IF(C21=$O$35,U35,IF(C21=$O$36,U36,IF(C21=$O$37,U37,IF(C21=$O$38,U38,IF(C21=$O$39,U39,IF(C21=$O$40,U40,IF(C21=$O$41,U41,IF(C21=$O$42,U42,IF(C21=$O$43,U43,IF(C21=$O$44,U44,IF(C21=$O$45,U45,IF(C21=$O$46,U46,IF(C21=$O$47,O47,0))))))))))))))))) -> 2.52 | D25: =IF(D21=$O$31,V31,IF(D21=$O$32,V32,IF(D21=$O$33,V33,IF(D21=$O$34,V34,IF(D21=$O$35,V35,IF(D21=$O$36,V36,IF(D21=$O$37,V37,IF(D21=$O$38,V38,IF(D21=$O$39,V39,IF(D21=$O$40,V40,IF(D21=$O$41,V41,IF(D21=$O$42,V42,IF(D21=$O$43,V43,IF(D21=$O$44,V44,IF(D21=$O$45,V45,IF(D21=$O$46,V46,IF(D21=$O$47,P47,0))))))))))))))))) -> 1.98 | E25: 2.16 | F25: 1.98 | G25: 3.96 | H25: 2.52 | I25: 3.78 | O25: Export oaten hay | P25: 25
A26: Lime required due to seeding fertiliser applications (kg/ha) | C26: =C24*C25 -> 41.7312 | D26: =D24*D25 -> 7.128 | E26: 29.16 | F26: 0 | G26: 29.7 | H26: 0 | I26: 20.79 | J26: Total (kg/ha) | K26: =SUM(C26:I26) -> 128.5092 | O26: Clover hay | P26: 40
A27: Fertiliser 2. | O27: Fertiliser lime equivalent (leaching adjusted)*
A28: Fertiliser Type | B28: Select | C28: UAN | D28: Urea | E28: S.O.A | F28: Urea | G28: Urea | H28: Urea | I28: Urea | O28: Fertiliser | Q28: N % | R28: Leaching % | U28: Year 1 | V28: 2 | W28: 3 | X28: 4 | Y28: 5 | Z28: 6 | AA28: 7 | AB28: 8 | AC28: 9 | AD28: 10
A29: Rate fertiliser (kg/ha) | B29: Enter | C29: 20 | D29: 0 | E29: 30 | F29: 0 | G29: 0 | H29: 0 | I29: 40 | O29: Select | P29: Composition | Q29: % | R29: 0 | S29: 1 | U29: Lime equivalent (Leaching adj.) | V29: Lime equivalent (Leaching adj.) | W29: Lime equivalent (Leaching adj.) | X29: Lime equivalent (Leaching adj.) | Y29: Lime equivalent (Leaching adj.) | Z29: Lime equivalent (Leaching adj.) | AA29: Lime equivalent (Leaching adj.) | AB29: Lime equivalent (Leaching adj.) | AC29: Lime equivalent (Leaching adj.) | AD29: Lime equivalent (Leaching adj.)
A30: Product N (%) | C30: =IF(C28=$O$31,$Q$31,IF(C28=$O$32,$Q$32,IF(C28=$O$33,$Q$33,IF(C28=$O$34,$Q$34,IF(C28=$O$35,$Q$35,IF(C28=$O$36,$Q$36,IF(C28=$O$37,$Q$37,IF(C28=$O$38,$Q$38,IF(C28=$O$39,$Q$39,IF(C28=$O$40,$Q$40,IF(C28=$O$41,$Q$41,IF(C28=$O$42,$Q$42,IF(C28=$O$43,$Q$43,IF(C28=$O$44,$Q$44,IF(C28=$O$45,$Q$45,IF(C28=$O$46,$Q$46,IF(C28=$O$47,$Q$47,0))))))))))))))))) -> 30 | D30: =IF(D28=$O$31,$Q$31,IF(D28=$O$32,$Q$32,IF(D28=$O$33,$Q$33,IF(D28=$O$34,$Q$34,IF(D28=$O$35,$Q$35,IF(D28=$O$36,$Q$36,IF(D28=$O$37,$Q$37,IF(D28=$O$38,$Q$38,IF(D28=$O$39,$Q$39,IF(D28=$O$40,$Q$40,IF(D28=$O$41,$Q$41,IF(D28=$O$42,$Q$42,IF(D28=$O$43,$Q$43,IF(D28=$O$44,$Q$44,IF(D28=$O$45,$Q$45,IF(D28=$O$46,$Q$46,IF(D28=$O$47,$Q$47,0))))))))))))))))) -> 46 | E30: 21 | F30: 46 | G30: 46 | H30: 46 | I30: 46 | U30: kg Lime/kg N | V30: kg Lime/kg N | W30: kg Lime/kg N | X30: kg Lime/kg N | Y30: kg Lime/kg N | Z30: kg Lime/kg N | AA30: kg Lime/kg N | AB30: kg Lime/kg N | AC30: kg Lime/kg N | AD30: kg Lime/kg N
A31: Rate of nitrogen | C31: =C29*C30/100 -> 6 | D31: =D29*D30/100 -> 0 | E31: 6.3 | F31: 0 | G31: 0 | H31: 0 | I31: 18.4 | O31: Single Super | P31: Phosphorus Sulphate | Q31: 0 | R31: 0 | S31: 0 | U31: =R31+(S31-R31)*C8 -> 0 | V31: =$R$31+($S$31-$R$31)*D8 -> 0 | W31: 0 | X31: 0 | Y31: 0 | Z31: 0 | AA31: 0 | AB31: =$R$31+($S$31-$R$31)*#REF! ->  | AC31: 0 | AD31: =$R$31+($S$31-$R$31)*L10 -> 0
A32: Leaching adjusted lime requirement (kg/ha)/kg N | C32: =IF(C28=$O$31,U31,IF(C28=$O$32,U32,IF(C28=$O$33,U33,IF(C28=$O$34,U34,IF(C28=$O$35,U35,IF(C28=$O$36,U36,IF(C28=$O$37,U37,IF(C28=$O$38,U38,IF(C28=$O$39,U39,IF(C28=$O$40,U40,IF(C28=$O$41,U41,IF(C28=$O$42,U42,IF(C28=$O$43,U43,IF(C28=$O$44,U44,IF(C28=$O$45,U45,IF(C28=$O$46,U46,IF(C28=$O$47,U47,0))))))))))))))))) -> 0.72 | D32: =IF(D28=$O$31,V31,IF(D28=$O$32,V32,IF(D28=$O$33,V33,IF(D28=$O$34,V34,IF(D28=$O$35,V35,IF(D28=$O$36,V36,IF(D28=$O$37,V37,IF(D28=$O$38,V38,IF(D28=$O$39,V39,IF(D28=$O$40,V40,IF(D28=$O$41,V41,IF(D28=$O$42,V42,IF(D28=$O$43,V43,IF(D28=$O$44,V44,IF(D28=$O$45,V45,IF(D28=$O$46,V46,IF(D28=$O$47,V47,0))))))))))))))))) -> 0.18 | E32: 3.96 | F32: 0.18 | G32: 0.36 | H32: 0.72 | I32: 0.18 | O32: Muriate Pot. | P32: Potassium Chloride | Q32: 0 | R32: 0 | S32: 0 | U32: =R32+(S32-R32)*$C$8 -> 0 | V32: =R32+(S32-R32)*$D$8 -> 0 | W32: =R32+(S32-R32)*$E$8 -> 0 | X32: =R32+(S32-R32)*$F$8 -> 0 | Y32: =R32+(S32-R32)*$G$8 -> 0 | Z32: =R32+(S32-R32)*$H$8 -> 0 | AA32: =R32+(S32-R32)*$I$8 -> 0 | AB32: =$R$32+($S$32-$R$32)*#REF! ->  | AC32: =$R$32+($S$32-$R$32)*$K$8 -> 0 | AD32: =$R$32+($S$32-$R$32)*$L$10 -> 0
A33: Lime required due to in-crop fertiliser applications (kg/ha) | C33: =C31*C32 -> 4.32 | D33: =D31*D32 -> 0 | E33: 24.948 | F33: 0 | G33: 0 | H33: 0 | I33: 3.312 | J33: Total (kg/ha) | K33: =SUM(C33:I33) -> 32.58 | O33: Sulphate Pot. | P33: Potassium sulphate | Q33: 0 | R33: 0 | S33: 0 | U33: 0 | V33: 0 | W33: 0 | X33: 0 | Y33: 0 | Z33: 0 | AA33: 0 | AB33: =$R$32+($S$32-$R$32)*#REF! ->  | AC33: 0 | AD33: 0
O34: Ammonium Nitrate | P34: Ammonium Nitrate | Q34: 34 | R34: 0 | S34: 3.6 | U34: 0.72 | V34: 0.18 | W34: 0.36 | X34: 0.18 | Y34: 0.36 | Z34: 0.72 | AA34: 0.18 | AB34: =$R$32+($S$32-$R$32)*#REF! ->  | AC34: 0 | AD34: 0
A35: Annual replacement lime required (kg/ha) | C35: =C13+C18+C26+C33 -> 78.4512 | D35: 22.608 | E35: 81.108 | F35: 38 | G35: 41.4 | H35: 110.4 | I35: 42.102 | O35: Urea | P35: Urea | Q35: 46 | R35: 0 | S35: 3.6 | U35: 0.72 | V35: 0.18 | W35: 0.36 | X35: 0.18 | Y35: 0.36 | Z35: 0.72 | AA35: 0.18 | AB35: =$R$32+($S$32-$R$32)*#REF! ->  | AC35: 0 | AD35: 0
A36: Cumulative lime required over"n" years (kg/ha) | C36: =C35 -> 78.4512 | D36: =C36+D35 -> 101.0592 | E36: =D36+E35 -> 182.1672 | F36: 220.1672 | G36: 261.5672 | H36: 371.9672 | I36: 414.0692 | O36: UAN | P36: Urea/Ammonium nitrate | Q36: 30 | R36: 0 | S36: 3.6 | U36: 0.72 | V36: 0.18 | W36: 0.36 | X36: 0.18 | Y36: 0.36 | Z36: 0.72 | AA36: 0.18 | AB36: =$R$32+($S$32-$R$32)*#REF! ->  | AC36: 0 | AD36: 0
O37: 32:10 | P37: DAP/Urea Blend | Q37: 32 | R37: 0.9 | S37: 5.4 | U37: 1.8 | V37: 1.125 | W37: 1.35 | X37: 1.125 | Y37: 1.35 | Z37: 1.8 | AA37: 1.125 | AB37: =$R$32+($S$32-$R$32)*#REF! ->  | AC37: 0 | AD37: 0
A38: Summary of lime requirement to address annual acidification | O38: DAP | P38: 18%N, 20% P | Q38: 18 | R38: 1.8 | S38: 5.4 | U38: 2.52 | V38: 1.98 | W38: 2.16 | X38: 1.98 | Y38: 2.16 | Z38: 2.52 | AA38: 1.98 | AB38: =$R$32+($S$32-$R$32)*#REF! ->  | AC38: 0 | AD38: 0
O39: 27:12 | P39: MAP/Urea Blend | Q39: 27 | R39: 3.6 | S39: 7.2 | U39: 4.32 | V39: 3.78 | W39: 3.96 | X39: 3.78 | Y39: 3.96 | Z39: 4.32 | AA39: 3.78 | AB39: =$R$32+($S$32-$R$32)*#REF! ->  | AC39: 0 | AD39: 0
A40: Number of years of management data (n=) | E40: =COUNTA(C10:I10) -> 7 | O40: 19:13 | P40: DAP/SOA blend | Q40: 19 | R40: 2.7 | S40: 6.3 | U40: 3.42 | V40: 2.88 | W40: 3.06 | X40: 2.88 | Y40: 3.06 | Z40: 3.42 | AA40: 2.88 | AB40: =$R$32+($S$32-$R$32)*#REF! ->  | AC40: 0 | AD40: 0
O41: MAP | P41: 10%N, 20% P | Q41: 10 | R41: 3.6 | S41: 7.2 | U41: 4.32 | V41: 3.78 | W41: 3.96 | X41: 3.78 | Y41: 3.96 | Z41: 4.32 | AA41: 3.78 | AB41: =$R$32+($S$32-$R$32)*#REF! ->  | AC41: 0 | AD41: 0
A42: Cumulative replacement lime required by management practice (kg/ha) | O42: S.O.A | P42: ammonium sulphate | Q42: 21 | R42: 3.6 | S42: 7.2 | U42: 4.32 | V42: 3.78 | W42: 3.96 | X42: 3.78 | Y42: 3.96 | Z42: 4.32 | AA42: 3.78 | AB42: =$R$32+($S$32-$R$32)*#REF! ->  | AC42: 0 | AD42: 0
O43: 12:17 | P43: MAP/Urea Blend | Q43: 12 | R43: 1.8 | S43: 5.4 | U43: 2.52 | V43: 1.98 | W43: 2.16 | X43: 1.98 | Y43: 2.16 | Z43: 2.52 | AA43: 1.98 | AB43: =$R$32+($S$32-$R$32)*#REF! ->  | AC43: 0 | AD43: 0
A44: Lime required due to product removal (kg/ha) | E44: =K13 -> 142.1 | O44: 24:16 | P44: 80% DAP, 20% Urea | Q44: 24 | R44: 1.8 | S44: 3.6 | U44: 2.16 | V44: 1.89 | W44: 1.98 | X44: 1.89 | Y44: 1.98 | Z44: 2.16 | AA44: 1.89 | AB44: =$R$32+($S$32-$R$32)*#REF! ->  | AC44: 0 | AD44: 0
A45: Lime required due to legume fixed N (kg/ha) | E45: =K18 -> 110.88 | O45: Pasture Legume | P45: Legume fixed N (30 kg/t DM) | Q45: 30 | R45: 0 | S45: 3.6 | U45: 0.72 | V45: 0.18 | W45: 0.36 | X45: 0.18 | Y45: 0.36 | Z45: 0.72 | AA45: 0.18 | AB45: =$R$32+($S$32-$R$32)*#REF! ->  | AC45: 0 | AD45: 0
A46: Lime required due to seeding fertiliser applications (kg/ha) | E46: =K26 -> 128.5092 | O46: Grain Legume | P46: Legume fixed N (60 kg/t grain) | Q46: 60 | R46: 0 | S46: 3.6 | U46: 0.72 | V46: 0.18 | W46: 0.36 | X46: 0.18 | Y46: 0.36 | Z46: 0.72 | AA46: 0.18 | AB46: =$R$32+($S$32-$R$32)*#REF! ->  | AC46: 0 | AD46: 0
A47: Lime required due to in-crop fertiliser applications (kg/ha) | E47: =K33 -> 32.58 | O47: Other | Q47: N % from product analysis. | R47: Function of base fertilisers used to create blend
A48: Total cumulative lime required over "n" years (kg/ha) | E48: =I36 -> 414.0692 | O48: *adjusted from Soil Guide (AgWA 1998)
A50: Average annual replacement lime required (kg/ha) | E50: =IF(ISERROR(SUM(E44:E47)/E40),"0",SUM(E44:E47)/E40) -> 59.15274286
A52: Recommended lime application rate for 10 year period (t/ha) | E52: =E50*10/1000 -> 0.5915274286

Sheet Instructions
B1: How to use this tool
C3: these buttons to move to perform listed function
B5: Enter | C5: type your information into the green shaded cell adjacent or below.
B7: Select | C7: Select an option from the drop down list which will appear when you click on the blue shaded cell adjacent or below
C9: Cells of this colour contain data calculated from your entries or selections
B11: Lime maintenance rate calculator
B12: Paddock information
B13: Enter | C13: the paddock name
B15: Select | C15: the paddock top soil (0-10 cm soil layer) texture. | H15: Note: this information is vital for the model to calculate leaching %
B17: Enter | C17: the year that you have paddock data for
B19: Select | C19: the annual rainfall for that year | H19: Note: this information is vital for the model to calculate leaching %
B21: Select | C21: whether or not the soil was saturated for any length of time during the course of that year
B22: Select
B23: Select | C23: crop or pasture type from the drop down list
B25: Enter | C25: grain yield (t/ha) or pasture biomass (t/ha) if pasture is selected under crop type.
B27: Fertiliser information
B29: Select | C29: the seeding fertiliser (Fertiliser 1) type from the drop down list (if your blend is not listed use the product from the list with the closest composition made from the same base blend)
B31: Enter | C31: kilograms per ha of fertiliser product applied
B32: Repeat these steps for in crop nitrogen applications (Fertiliser 2).
B33: If you applied multiple N applications during the season enter the total kg of product applied over the course of the season.
B34: If you used a mixture of urea and S.O.A during the season selecting urea and entering the total kg of product (S.O.A + urea) will give a similar result in years where leaching is >25%
B35: Note. Although sulphate of ammonia is twice as acidifying as urea per kg Nitrogen it contains roughly half the nitrogen of urea. Thus the acidifying effect per kg of product (not per kg nitrogen) is similar to urea in most years.

Sheet Calculation tables
A1: Tables used in calculations
A3: Annual rainfall received | B3: % leaching by soil texture and rainfall
B4: sand | C4: loamy sand | D4: sandy loam | E4: loam | F4: clay loam | G4: clay
A5: Less than 325 mm | B5: 0.5 | C5: 0.4 | D5: 0.3 | E5: 0.1 | F5: 0 | G5: 0
A6: 325 - 450 mm | B6: 0.65 | C6: 0.57 | D6: 0.45 | E6: 0.25 | F6: 0.05 | G6: 0
A7: 450 - 550 mm | B7: 0.75 | C7: 0.68 | D7: 0.5 | E7: 0.3 | F7: 0.1 | G7: 0
A8: 550 - 750 mm | B8: 0.8 | C8: 0.7 | D8: 0.6 | E8: 0.4 | F8: 0.2 | G8: 0
A9: Greater than 750 mm | B9: 0.95 | C9: 0.85 | D9: 0.75 | E9: 0.55 | F9: 0.35 | G9: 0.15
A10: Saturated Soil | B10: 0.95 | C10: 0.85 | D10: 0.75 | E10: 0.55 | F10: 0.35 | G10: 0.15
A12: Lime replacement required due to product removal | D12: N fixed by legume crops and pastures (kg N/ha)
A13: Crop | B13: lime equivalent per tonne | D13: Crop | E13: Select
A14: Cereal grain | B14: 9 | D14: Cereal grain | E14: 0
A15: Grain legume | B15: 20 | D15: Grain legume | E15: 30
A16: Oilseed | B16: 2 | D16: Oilseed | E16: 0
A17: Pasture (grass only) | B17: 1 | D17: Pasture (grass only) | E17: 0
A18: Pasture (40% legume) | B18: 2 | D18: Pasture (40% legume) | E18: 8
A19: Pasture (60% legume) | B19: 3 | D19: Pasture (60% legume) | E19: 15
A20: Pasture (80% legume) | B20: 4 | D20: Pasture (80% legume) | E20: 20
A21: Lucerne hay | B21: 70 | D21: Lucerne hay | E21: 20
A22: Export oaten hay | B22: 25 | D22: Export oaten hay | E22: 0
A23: Clover hay | B23: 40 | D23: Clover hay | E23: 20
A24: Fertiliser lime equivalent (leaching adjusted)*
A25: Fertiliser | C25: N % | D25: Leaching %
A26: Select | B26: Composition | C26: % | D26: 0 | E26: 1
A27: Single super | B27: phosphorus sulphate | C27: 0 | D27: 0 | E27: 0
A28: Muriate of potash | B28: potassium chloride | C28: 0 | D28: 0 | E28: 0
A29: Sulphate of potash | B29: potassium sulphate | C29: 0 | D29: 0 | E29: 0
A30: ammonium nitrate | B30: ammonium nitrate | C30: 34 | D30: 0 | E30: 3.6
A31: Urea | B31: urea | C31: 46 | D31: 0 | E31: 3.6
A32: UAN | B32: urea/ammonium nitrate | C32: 30 | D32: 0 | E32: 3.6
A33: 32:10 | B33: DAP/urea blend | C33: 32 | D33: 0.9 | E33: 5.4
A34: DAP | B34: 18%N, 20% P | C34: 18 | D34: 1.8 | E34: 5.4
A35: 27:12 | B35: MAP/urea blend | C35: 27 | D35: 3.6 | E35: 7.2
A36: 19:13 | B36: DAP/SOA blend | C36: 19 | D36: 2.7 | E36: 6.3
A37: MAP | B37: 10%N, 22% P | C37: 10 | D37: 3.6 | E37: 7.2
A38: S.O.A | B38: ammonium sulphate | C38: 21 | D38: 3.6 | E38: 7.2
A39: 12:17 | B39: MAP/urea Blend | C39: 12 | D39: 1.8 | E39: 5.4
A40: 24:16 | B40: 80% DAP, 20% Urea | C40: 24 | D40: 1.8 | E40: 3.6
A41: Pasture Legume | B41: Legume fixed N (30 kg/t dry matter) | C41: 30 | D41: 0 | E41: 3.6
A42: Grain Legume | B42: Legume fixed N (60 kg/t grain) | C42: 60 | D42: 0 | E42: 3.6
A43: Other | C43: N % from product analysis. | D43: Function of base fertilisers used to create blend
A44: *adjusted from Soil Guide (AgWA 1998)
